bitfinex/quotes_SOLUSD_20220116
["timestamp","ask_amount","ask_price","bid_price","bid_amount"]
[1642352403028,9.9813,150.34,150.23,38.78722433]
[1642352403227,1.79368412,150.35,150.23,38.78722433]
[1642352403829,60.03622226,150.36,150.23,38.78722433]
[1642352404129,22.5226,150.35,150.23,38.78722433]
[1642352404532,32.5033,150.35,150.23,38.78722433]
[1642352405030,34.29698412,150.35,150.23,40.67963619]
[1642352405634,1.79368412,150.35,150.23,40.67963619]
[1642352405833,1.79368412,150.36,150.23,40.67963619]
[1642352407033,1.79368412,150.36,150.23,39.43311186]
[1642352407333,1.79368412,150.36,150.23,39.50311186]
[1642352407836,1.79368412,150.36,150.23,40.74737499]
[1642352408236,1.79368412,150.36,150.23,159.64737499]
[1642352408638,1.79368412,150.36,150.24,66.55]
[1642352408836,1.79368412,150.36,150.27,2.9936]
[1642352409036,1.79368412,150.36,150.28,11.89896072]
[1642352409439,0.40629761,150.32,150.28,12.14896072]
[1642352409637,0.81267934,150.32,150.28,12.14896072]
[1642352410439,0.81267934,150.32,150.28,15.14236072]
[1642352410638,1.79368412,150.36,150.29,124.07]
[1642352410838,1.79368412,150.36,150.3,9.51]
[1642352411341,1.79368412,150.36,150.3,9.76]
[1642352411638,1.79368412,150.39,150.3,9.76]
[1642352411839,1.79368412,150.39,150.3,33.2681]
[1642352412542,1.79368412,150.39,150.3,102.811]
[1642352412944,1.79368412,150.39,150.31,0.07]
[1642352413143,1.79368412,150.39,150.32,9.51]
[1642352413440,1.79368412,150.39,150.33,24.43709155]
[1642352413641,1.79368412,150.39,150.34,9.51]
[1642352413841,1.79368412,150.41,150.34,9.76]
[1642352415447,1.79368412,150.41,150.34,9.51]
[1642352415745,1.79368412,150.41,150.34,9.76]
[1642352416547,1.79368412,150.42,150.34,9.76]
[1642352417544,1.79368412,150.43,150.34,12.7522]
[1642352418747,26.09888412,150.43,150.34,36.9491]
[1642352418946,63.83767343,150.43,150.34,36.9491]
[1642352419149,26.09888412,150.43,150.34,36.9491]
[1642352419347,1.79368412,150.43,150.34,36.9491]
[1642352419547,1.79368412,150.43,150.34,37.0191]
[1642352419848,1.79368412,150.43,150.37,2.9916]
[1642352420046,1.79368412,150.43,150.38,9.51]
[1642352420245,1.79368412,150.43,150.38,11.89896072]
[1642352420452,1.79368412,150.43,150.38,78.69896072]
[1642352420854,1.79368412,150.47,150.38,12.14896072]
[1642352421454,44.54463428,150.47,150.38,15.14026072]
[1642352421873,1.79368412,150.47,150.39,66.55]
[1642352422073,1.79368412,150.47,150.4,9.51]
[1642352422272,3.7098392,150.51,150.42,66.55]
[1642352422577,3.7098392,150.51,150.46,2.9894]
[1642352422771,3.7098392,150.51,150.47,9.51]
[1642352422973,3.7098392,150.51,150.47,32.68590396]
[1642352423573,3.7098392,150.6,150.47,32.68590396]
[1642352424275,9.9656,150.58,150.47,35.67550396]
[1642352429979,9.9656,150.58,150.48,66.55]
[1642352430179,36.89904204,150.59,150.49,12.4992]
[1642352430383,36.89904204,150.59,150.49,12.7492]
[1642352430982,36.89904204,150.59,150.49,79.2992]
[1642352432192,36.89904204,150.59,150.5,0.07]
[1642352432390,36.89904204,150.59,150.52,3.90014831]
[1642352432589,34.8065,150.6,150.53,9.51]
[1642352432996,34.8065,150.6,150.53,9.76]
[1642352433489,9.8794,150.6,150.53,9.76]
[1642352433693,39.55521092,150.59,150.53,9.76]
[1642352434291,39.55521092,150.59,150.53,9.51]
[1642352435192,39.55521092,150.59,150.53,9.76]
[1642352437495,39.55521092,150.59,150.53,9.51]
[1642352438299,49.52001092,150.59,150.53,9.51]
[1642352439097,9.8794,150.6,150.54,66.55]
[1642352439299,3.7098392,150.65,150.55,9.51]
[1642352439700,3.7098392,150.65,150.55,9.76]
[1642352440098,36.35035759,150.64,150.55,29.99240112]
[1642352440906,36.35035759,150.64,150.55,9.76]
[1642352441101,36.35035759,150.64,150.55,9.51]
[1642352442503,46.31225759,150.64,150.55,9.51]
[1642352449037,46.31225759,150.64,150.55,9.76]
[1642352450844,7.48465738,150.63,150.55,9.76]
[1642352453147,7.48465738,150.63,150.55,9.51]
[1642352454251,3.7098392,150.62,150.55,9.51]
[1642352459784,3.7098392,150.61,150.55,9.51]
[1642352460485,3.7098392,150.61,150.55,12.7481]
[1642352461083,3.7098392,150.61,150.56,66.55]
[1642352461283,3.77481818,150.63,150.58,66.55]
[1642352461284,7.55728039,150.63,150.58,66.55]
[1642352461482,7.55728039,150.63,150.6,66.55]
[1642352461683,7.55728039,150.63,150.61,9.51]
[1642352461886,7.55728039,150.63,150.61,76.31]
[1642352462083,3.77481818,150.63,150.62,58.0]
[1642352462285,46.21190361,150.68,150.62,72.1108214]
[1642352462485,46.21190361,150.68,150.62,11.51]
[1642352463084,42.43708543,150.68,150.62,11.51]
[1642352464392,3.77558958,150.67,150.62,11.51]
[1642352466493,13.73518958,150.67,150.62,11.51]
[1642352467096,13.73518958,150.67,150.62,9.51]
[1642352467795,9.9596,150.67,150.62,9.51]
[1642352468893,11.66037588,150.67,150.52,11.89949583]
[1642352469194,34.65977588,150.67,150.59,9.51]
[1642352470296,3.77486253,150.66,150.59,9.51]
[1642352470495,42.70745035,150.63,150.59,9.51]
[1642352472199,52.66955035,150.63,150.59,9.51]
[1642352472998,9.9621,150.63,150.59,9.51]
[1642352474202,51.73311415,150.63,150.59,9.51]
[1642352477707,41.77101415,150.63,150.59,9.51]
[1642352479006,10.1934,150.64,150.59,9.51]
[1642352480108,42.11212632,150.63,150.59,9.51]
[1642352483013,64.21457459,150.69,150.6,66.55]
[1642352483213,5.26435671,150.69,150.62,66.55]
[1642352483413,5.26435671,150.69,150.63,9.51]
[1642352483812,36.2952279,150.68,150.63,14.04589814]
[1642352484614,36.2952279,150.68,150.63,9.51]
[1642352485845,33.1913,150.74,150.64,66.55]
[1642352486045,28.47805671,150.75,150.65,9.51]
[1642352486243,28.47805671,150.75,150.65,34.395]
[1642352486644,3.7734117,150.73,150.65,9.51]
[1642352486845,41.55969618,150.72,150.65,9.51]
[1642352487245,51.51589618,150.72,150.65,9.51]
[1642352487848,51.51589618,150.72,150.65,9.76]
[1642352488245,41.55969618,150.72,150.65,9.76]
[1642352488446,41.55969618,150.72,150.65,9.51]
[1642352488648,41.55969618,150.72,150.65,9.76]
[1642352488849,41.55969618,150.72,150.65,9.51]
[1642352489650,51.51639618,150.72,150.65,9.51]
[1642352489849,51.51639618,150.72,150.65,9.76]
[1642352490049,51.51639618,150.72,150.65,9.51]
[1642352491050,51.51639618,150.72,150.65,9.76]
[1642352491551,51.51639618,150.72,150.65,9.51]
[1642352491750,58.29539618,150.72,150.65,9.51]
[1642352492954,3.77329033,150.71,150.65,9.51]
[1642352493252,9.9588,150.7,150.65,9.51]
[1642352496758,3.77275483,150.69,150.65,9.51]
[1642352496957,9.9588,150.68,150.65,9.51]
[1642352497161,41.24904159,150.67,150.65,9.51]
[1642352497859,41.24904159,150.67,150.58,23.3197]
[1642352498059,51.20864159,150.67,150.59,9.51]
[1642352499660,51.20864159,150.67,150.6,5.7705779]
[1642352499859,51.20864159,150.67,150.61,9.51]
[1642352500561,47.14424165,150.67,150.61,9.51]
[1642352511968,37.18464165,150.67,150.61,9.51]
[1642352512166,37.18464165,150.67,150.61,76.31]
[1642352512567,30.08335671,150.71,150.61,76.31]
[1642352512765,30.08335671,150.71,150.61,9.76]
[1642352512766,5.26435671,150.71,150.61,9.76]
[1642352512966,25.04955671,150.73,150.61,9.76]
[1642352513167,25.04955671,150.73,150.62,23.8056]
[1642352513367,25.04955671,150.73,150.63,9.51]
[1642352513568,45.01754141,150.72,150.63,45.73134459]
[1642352513771,45.01754141,150.72,150.63,9.51]
[1642352513970,48.79557594,150.72,150.63,9.51]
[1642352514570,58.75187594,150.72,150.63,9.51]
[1642352514970,3.77803453,150.71,150.63,9.51]
[1642352515371,28.58043453,150.71,150.63,9.51]
[1642352515769,38.53733453,150.71,150.63,9.51]
[1642352516471,3.77803453,150.7,150.63,9.51]
[1642352516669,39.84640633,150.69,150.63,9.51]
[1642352520400,49.80460633,150.69,150.63,9.51]
[1642352524011,3.7813326,150.68,150.63,9.51]
[1642352540522,13.7402326,150.68,150.6,33.663]
[1642352540723,37.7232326,150.68,150.6,33.913]
[1642352540925,45.0012326,150.68,150.6,9.51]
[1642352541626,54.97784141,150.66,150.6,9.51]
[1642352542727,1.8931769,150.63,150.6,9.51]
[1642352542927,4.06439994,150.62,150.6,9.51]
[1642352543930,39.84640633,150.61,150.6,9.51]
[1642352544730,5.95757684,150.62,150.6,9.51]
[1642352544931,4.06439994,150.62,150.6,9.51]
[1642352545832,53.85164358,150.62,150.6,9.51]
[1642352546031,4.06439994,150.62,150.6,9.51]
[1642352546231,1.8931769,150.63,150.6,11.51]
[1642352547835,4.06439994,150.62,150.6,11.51]
[1642352548038,43.80742398,150.61,150.6,11.51]
[1642352548235,43.80742398,150.61,150.6,9.51]
[1642352553866,45.0,150.6,150.57,23.0792]
[1642352554066,45.0,150.6,150.58,9.51]
[1642352554267,38.03219997,150.59,150.58,9.51]
[1642352554867,1.03219997,150.59,150.58,9.51]
[1642352555669,36.03219997,150.59,150.58,9.51]
[1642352557573,39.06439994,150.59,150.58,9.51]
[1642352558573,4.06439994,150.59,150.58,9.51]
[1642352562577,43.80742398,150.61,150.58,11.51]
[1642352562776,43.80742398,150.61,150.58,9.51]
[1642352566077,3.03219997,150.6,150.58,9.51]
[1642352566277,4.06439994,150.6,150.58,9.51]
[1642352571710,3.03219997,150.6,150.59,2.0]
[1642352571882,45.70060088,150.61,150.59,2.0]
[1642352572685,45.70060088,150.61,150.58,9.51]
[1642352574287,45.70060088,150.61,150.59,2.0]
[1642352574488,1.03219997,150.6,150.58,9.51]
[1642352575789,3.03219997,150.59,150.58,9.51]
[1642352576789,1.03219997,150.6,150.58,11.51]
[1642352577190,45.70060088,150.61,150.58,11.51]
[1642352580316,3.03219997,150.6,150.58,11.51]
[1642352580517,3.03219997,150.6,150.58,9.51]
[1642352580915,37.03219997,150.59,150.58,9.51]
[1642352583319,1.03219997,150.59,150.58,9.51]
[1642352584021,1.03219997,150.59,150.53,2.9884]
[1642352584022,7.27519997,150.59,150.53,9.51]
[1642352584419,7.27519997,150.59,150.51,1.77217306]
[1642352584819,31.54652376,150.58,150.5,26.48537306]
[1642352585619,24.8077,150.57,150.5,26.48537306]
[1642352586420,26.7008769,150.57,150.5,24.9632]
[1642352586619,26.7008769,150.57,150.5,24.7132]
[1642352588726,24.8077,150.57,150.5,24.7132]
[1642352590329,24.8077,150.57,150.5,34.2232]
[1642352595535,24.8077,150.57,150.5,9.51]
[1642352597973,42.69735108,150.54,150.5,9.51]
[1642352598777,42.69735108,150.54,150.45,24.445]
[1642352598975,22.8071,150.53,150.46,9.51]
[1642352599375,32.7757,150.53,150.46,9.51]
[1642352603583,32.7757,150.53,150.4,3.00582609]
[1642352603584,39.2857,150.53,150.4,3.00582609]
[1642352603790,39.2857,150.53,150.41,9.51]
[1642352605489,66.55,150.52,150.41,9.51]
[1642352605688,9.9726,150.49,150.41,9.51]
[1642352605887,23.0969,150.48,150.38,11.28217306]
[1642352606287,23.0969,150.48,150.38,9.51]
[1642352606487,89.6469,150.48,150.38,9.51]
[1642352606886,42.69735108,150.47,150.38,9.51]
[1642352607088,9.9738,150.45,150.36,1.77217306]
[1642352607289,107.8459,150.45,150.36,1.77217306]
[1642352607490,107.8459,150.45,150.34,9.51]
[1642352607887,23.14659666,150.44,150.33,1.77217306]
[1642352608088,9.9779,150.41,150.33,1.77217306]
[1642352608288,42.69735108,150.4,150.33,1.77217306]
[1642352608887,42.69735108,150.4,150.31,9.51]
[1642352609288,9.9785,150.38,150.31,9.51]
[1642352609492,23.14659666,150.37,150.31,9.51]
[1642352610693,23.14659666,150.37,150.31,15.53783328]
[1642352611092,23.14659666,150.37,150.31,15.78783328]
[1642352611293,77.28141054,150.44,150.31,17.02148631]
[1642352611294,43.99141054,150.44,150.31,17.02148631]
[1642352612193,45.51704249,150.43,150.31,17.02148631]
[1642352612397,9.9772,150.4,150.31,17.02148631]
[1642352612597,20.32690525,150.39,150.31,17.02148631]
[1642352612994,20.32690525,150.39,150.31,16.77148631]
[1642352613195,20.32690525,150.39,150.31,15.53783328]
[1642352614195,20.32690525,150.39,150.31,15.78783328]
[1642352615102,9.9772,150.4,150.31,15.78783328]
[1642352616199,56.77349687,150.4,150.31,15.78783328]
[1642352616800,46.79629687,150.4,150.31,19.77813328]
[1642352618001,46.79629687,150.4,150.31,19.52813328]
[1642352619302,9.9765,150.41,150.31,19.52813328]
[1642352619904,9.9765,150.41,150.31,19.77813328]
[1642352620107,33.9392,150.43,150.31,19.77813328]
[1642352620404,36.02175121,150.4,150.31,19.77813328]
[1642352624335,36.02175121,150.4,150.31,13.7503]
[1642352625340,36.02175121,150.4,150.32,49.78514301]
[1642352625537,36.02175121,150.4,150.33,9.51]
[1642352625938,36.02175121,150.4,150.33,9.76]
[1642352626841,36.02175121,150.4,150.33,13.7498]
[1642352627639,36.02175121,150.4,150.33,13.4998]
[1642352627841,36.02175121,150.4,150.33,13.7498]
[1642352631756,36.02175121,150.4,150.33,9.76]
[1642352634251,36.02175121,150.4,150.33,9.51]
[1642352634952,36.02175121,150.4,150.33,9.76]
[1642352637153,36.02175121,150.4,150.33,9.51]
[1642352637353,36.02175121,150.4,150.33,9.76]
[1642352639158,36.02175121,150.4,150.33,11.53217306]
[1642352642660,36.02175121,150.4,150.33,9.76]
[1642352643562,36.02175121,150.4,150.33,9.51]
[1642352644062,45.99885121,150.4,150.33,9.51]
[1642352649467,45.99885121,150.4,150.31,1.77217306]
[1642352649665,23.9354,150.39,150.31,1.77217306]
[1642352649964,9.9794,150.37,150.31,1.77217306]
[1642352650498,9.9794,150.37,150.3,9.51]
[1642352650869,29.82219653,150.36,150.3,9.51]
[1642352651164,38.13419653,150.36,150.3,9.51]
[1642352651564,48.11399653,150.36,150.3,9.51]
[1642352652366,48.11399653,150.36,150.3,24.92750892]
[1642352652667,39.80199653,150.36,150.3,24.92750892]
[1642352652867,39.80199653,150.36,150.3,9.51]
[1642352659473,39.80199653,150.36,150.27,1.77217306]
[1642352659674,9.9831,150.33,150.27,1.77217306]
[1642352659873,83.8761,150.33,150.27,1.77217306]
[1642352660074,17.3261,150.33,150.27,1.77217306]
[1642352660474,26.51175121,150.32,150.27,1.77217306]
[1642352660981,9.9841,150.31,150.27,1.77217306]
[1642352661173,15.9841,150.31,150.23,49.16467511]
[1642352661378,40.647,150.31,150.22,9.51]
[1642352661573,40.647,150.31,150.21,1.77217306]
[1642352662374,107.197,150.31,150.21,1.77217306]
[1642352662777,107.197,150.31,150.12,74.0405]
[1642352662778,118.40777588,150.31,150.17,3.68648887]
[1642352663479,118.40777588,150.31,150.17,49.38592095]
[1642352663876,118.40777588,150.31,150.17,3.68648887]
[1642352664175,118.40777588,150.31,150.14,15.19983491]
[1642352664376,118.40777588,150.31,150.14,9.76]
[1642352664776,118.40777588,150.31,150.15,42.04667522]
[1642352664976,118.40777588,150.31,150.16,24.3299]
[1642352665180,118.40777588,150.31,150.15,42.29667522]
[1642352665380,118.40777588,150.31,150.15,42.04667522]
[1642352665981,6.95381718,150.3,150.15,42.04667522]
[1642352666182,9.9869,150.26,150.16,66.55]
[1642352666380,50.98005121,150.25,150.16,66.55]
[1642352666578,50.98005121,150.25,150.13,9.51]
[1642352666981,50.98005121,150.25,150.13,10.74184884]
[1642352667379,50.98005121,150.25,150.14,43.22911989]
[1642352667582,60.96715121,150.25,150.15,12.506]
[1642352667780,60.96715121,150.25,150.15,36.8686]
[1642352667979,1.70077588,150.31,150.16,66.55]
[1642352668181,32.7171,150.32,150.17,33.723]
[1642352668381,23.2071,150.32,150.17,35.20484884]
[1642352668980,43.75656193,150.31,150.18,21.63693237]
[1642352669181,43.75656193,150.31,150.19,9.51]
[1642352669381,9.9843,150.29,150.19,12.5052]
[1642352669581,35.10168581,150.28,150.19,32.2957]
[1642352669780,35.10168581,150.28,150.08,3.68648887]
[1642352669781,124.0,150.27,150.08,3.68648887]
[1642352669980,124.0,150.27,150.06,361.88972159]
[1642352669981,66.55,150.09,150.06,358.75524465]
[1642352670181,117.0,150.1,150.06,13.30183333]
[1642352670182,4.06439994,150.08,150.06,13.30183333]
[1642352670380,133.51,150.07,150.0,9.10505635]
[1642352670580,10.0006,150.05,150.0,9.10505635]
[1642352670779,13.88874989,150.04,150.0,9.10505635]
[1642352670981,9.51,150.04,150.0,9.10505635]
[1642352671381,9.51,150.04,149.98,49.0025046]
[1642352671581,9.51,150.04,149.98,48.5025046]
[1642352671789,9.51,150.06,149.98,48.5025046]
[1642352672084,9.51,150.09,149.98,48.5025046]
[1642352672285,23.08586634,150.1,149.98,48.5025046]
[1642352672486,9.51,150.09,149.98,48.5025046]
[1642352672685,19.5077,150.09,149.98,48.5025046]
[1642352673014,19.4067,150.09,149.98,48.5025046]
[1642352673192,1.70077588,150.08,149.98,48.5025046]
[1642352673386,13.39026936,150.07,149.98,48.5025046]
[1642352674487,10.0026,150.05,149.98,48.5025046]
[1642352674887,23.08586634,150.04,149.98,48.5025046]
[1642352675489,33.3418,150.06,149.98,48.5025046]
[1642352676291,35.04257588,150.06,149.98,48.5025046]
[1642352676490,10.0015,150.03,149.98,48.5025046]
[1642352677297,10.2515,150.03,149.98,48.5025046]
[1642352677700,17.71887413,150.03,149.91,9.51]
[1642352677900,17.71887413,150.03,149.92,0.25]
[1642352678300,17.71887413,150.03,149.9,9.51]
[1642352678504,19.41965001,150.03,149.89,22.5201]
[1642352678701,19.41965001,150.03,149.9,49.94311186]
[1642352679108,9.51,150.02,149.9,49.94311186]
[1642352679303,10.0058,149.99,149.9,49.94311186]
[1642352679907,16.7448,149.99,149.9,49.94311186]
[1642352681729,10.0058,149.99,149.9,49.94311186]
[1642352681933,10.0058,149.99,149.9,50.19311186]
[1642352682932,10.0058,149.99,149.9,49.94311186]
[1642352683132,10.0058,149.99,149.9,50.19311186]
[1642352683332,10.0058,149.99,149.83,19.9264]
[1642352683333,11.21077588,149.98,149.76,89.7109]
[1642352683533,10.0099,149.92,149.77,123.7253]
[1642352683733,15.6449,149.92,149.77,57.5668]
[1642352683935,15.8949,149.92,149.77,57.5668]
[1642352684134,17.59567588,149.92,149.77,57.5668]
[1642352684436,15.8949,149.92,149.78,44.91570757]
[1642352684634,15.6449,149.92,149.79,9.51]
[1642352684836,10.0099,149.92,149.79,9.51]
[1642352685036,10.0099,149.92,149.79,10.74266574]
[1642352685236,10.0099,149.92,149.79,10.99266574]
[1642352685435,10.0099,149.92,149.79,16.99266574]
[1642352685836,10.0099,149.92,149.81,3.0024]
[1642352686037,10.0099,149.92,149.82,36.88598722]
[1642352687436,53.65921644,149.93,149.82,36.88598722]
[1642352687437,9.51,149.97,149.82,37.13598722]
[1642352687637,9.51,149.99,149.83,10.74266574]
[1642352687838,9.51,149.99,149.83,41.50286574]
[1642352688037,9.51,149.99,149.84,1.23266574]
[1642352688239,9.51,149.99,149.84,10.74266574]
[1642352688441,24.39286871,149.98,149.85,43.72424364]
[1642352688841,24.39286871,149.98,149.85,43.97424364]
[1642352689242,2.57326699,149.95,149.85,43.72424364]
[1642352689644,2.82326699,149.95,149.85,43.72424364]
[1642352690545,10.0094,149.92,149.85,43.72424364]
[1642352690744,24.39286871,149.91,149.85,43.72424364]
[1642352691144,56.3494,149.95,149.85,43.72424364]
[1642352692343,26.27459438,149.94,149.85,43.72424364]
[1642352692544,10.0096,149.92,149.85,43.72424364]
[1642352692945,0.69154132,149.91,149.85,43.72424364]
[1642352693745,56.3494,149.95,149.85,43.72424364]
[1642352694045,10.0099,149.92,149.85,43.72424364]
[1642352694845,34.63333102,149.92,149.85,43.72424364]
[1642352695244,34.63333102,149.92,149.81,23.4308]
[1642352695445,34.63333102,149.92,149.81,23.6808]
[1642352696547,34.63333102,149.92,149.82,45.28849599]
[1642352699883,34.88333102,149.92,149.82,45.28849599]
[1642352700684,10.2599,149.92,149.82,45.28849599]
[1642352700884,10.0099,149.92,149.82,45.28849599]
[1642352701085,10.0099,149.92,149.82,45.53849599]
[1642352701284,10.0099,149.92,149.83,9.51]
[1642352702083,10.0078,149.94,149.83,9.76]
[1642352702886,5.83293848,149.65,149.64,52.59845635]
[1642352703092,5.83293848,149.65,149.64,23.69845635]
[1642352703093,15.97333842,149.65,149.64,23.69845635]
[1642352703288,39.59473857,149.68,149.5,124.0]
[1642352703493,31.82273857,149.68,149.51,9.51]
[1642352703688,31.82273857,149.68,149.53,10.56583519]
[1642352703887,31.82273857,149.68,149.53,42.8]
[1642352704791,42.09773857,149.68,149.53,42.8]
[1642352704990,42.09773857,149.68,149.53,8.51]
[1642352705589,51.60773857,149.68,149.53,8.51]
[1642352705789,53.30851445,149.68,149.53,8.51]
[1642352705992,51.60773857,149.68,149.53,8.51]
[1642352706391,51.60773857,149.68,149.54,1.22952582]
[1642352706593,51.60773857,149.68,149.55,37.1801458]
[1642352707193,9.40069454,149.67,149.55,37.1801458]
[1642352707395,43.28351445,149.68,149.55,37.1801458]
[1642352707590,10.0288,149.64,149.55,37.1801458]
[1642352707992,41.33273857,149.68,149.55,37.4301458]
[1642352708195,41.33273857,149.68,149.55,37.1801458]
[1642352708593,51.35783857,149.68,149.55,37.4301458]
[1642352708792,44.45783857,149.68,149.55,37.4301458]
[1642352709093,44.45783857,149.68,149.55,37.1801458]
[1642352709394,19.5351,149.68,149.55,37.1801458]
[1642352709797,9.51,149.72,149.56,133.51]
[1642352710198,9.76,149.72,149.57,1.22952582]
[1642352710395,9.51,149.74,149.58,124.0]
[1642352710596,9.51,149.74,149.59,32.10938136]
[1642352710794,10.0184,149.78,149.6,9.51]
[1642352710995,10.0184,149.78,149.6,10.99952582]
[1642352711195,10.0184,149.78,149.6,16.98952582]
[1642352711393,10.0184,149.78,149.61,1.22952582]
[1642352711696,10.0184,149.78,149.63,1.55875718]
[1642352711896,10.0184,149.78,149.64,9.51]
[1642352712296,10.0184,149.78,149.64,15.76]
[1642352713194,10.0184,149.78,149.64,82.31]
[1642352713794,10.0184,149.78,149.64,79.81]
[1642352713998,10.017,149.8,149.65,1.22952582]
[1642352714195,10.017,149.8,149.66,9.51]
[1642352714397,10.017,149.8,149.67,96.40298261]
[1642352714599,10.017,149.8,149.68,76.06]
[1642352714999,10.017,149.8,149.68,76.31]
[1642352715599,10.017,149.8,149.68,9.76]
[1642352716999,10.017,149.8,149.68,76.31]
[1642352717201,10.017,149.8,149.68,9.76]
[1642352718028,10.017,149.8,149.68,66.8]
[1642352718202,10.017,149.8,149.68,0.25]
[1642352718502,10.017,149.8,149.69,8.02]
[1642352718701,10.017,149.8,149.7,11.83515593]
[1642352719903,10.017,149.8,149.7,12.08515593]
[1642352720107,10.017,149.8,149.7,11.83515593]
[1642352720305,10.017,149.8,149.7,12.08515593]
[1642352722511,10.0158,149.82,149.7,12.08515593]
[1642352722708,10.0158,149.82,149.71,66.55]
[1642352722907,33.385,149.86,149.72,8.02]
[1642352723306,81.39422017,149.86,149.73,29.85298261]
[1642352723506,81.39422017,149.86,149.73,104.42298261]
[1642352723707,10.0144,149.84,149.73,104.67298261]
[1642352725214,10.0129,149.86,149.73,104.67298261]
[1642352728660,10.0129,149.86,149.73,108.67778261]
[1642352729445,10.0129,149.86,149.73,37.87298261]
[1642352731145,10.0129,149.86,149.73,38.12298261]
[1642352731346,10.0129,149.86,149.74,66.55]
[1642352731547,56.9364,149.89,149.76,66.55]
[1642352731748,10.0118,149.88,149.77,8.02]
[1642352731946,10.0118,149.88,149.78,66.55]
[1642352732146,10.0118,149.88,149.79,8.02]
[1642352732348,10.0118,149.88,149.79,12.08515593]
[1642352732949,10.0118,149.88,149.79,11.83515593]
[1642352733854,33.2338,149.9,149.79,18.94615593]
[1642352734052,10.0103,149.9,149.79,18.94615593]
[1642352735056,10.0103,149.9,149.79,12.08515593]
[1642352735254,10.0103,149.9,149.79,11.83515593]
[1642352737360,76.5603,149.9,149.79,12.08515593]
[1642352737757,76.5603,149.9,149.79,11.83515593]
[1642352737961,78.26107588,149.9,149.79,11.83515593]
[1642352740261,76.5603,149.9,149.79,11.83515593]
[1642352742171,76.5603,149.9,149.79,3.81515593]
[1642352745706,86.7908,149.9,149.79,3.81515593]
[1642352747511,10.0144,149.86,149.79,3.81515593]
[1642352747711,44.96043503,149.91,149.79,11.83515593]
[1642352747910,44.96043503,149.91,149.79,12.08515593]
[1642352748343,81.6098,149.95,149.79,12.08515593]
[1642352748639,10.0112,149.9,149.79,12.08515593]
[1642352751147,10.0091,149.92,149.79,12.08515593]
[1642352751747,10.0091,149.92,149.79,78.63515593]
[1642352753553,10.0077,149.94,149.79,78.63515593]
[1642352753752,392.99677306,149.96,149.81,66.55]
[1642352753949,4.57569878,149.98,149.82,108.53]
[1642352754148,4.57569878,149.98,149.82,109.75952391]
[1642352754351,4.57569878,149.98,149.84,66.55]
[1642352754649,4.57569878,149.98,149.85,39.51801556]
[1642352754849,10.0038,150.0,149.85,140.27801556]
[1642352755050,4.57569878,150.01,149.86,1.29952391]
[1642352755249,4.57569878,150.01,149.87,108.27]
[1642352755451,4.57569878,150.01,149.87,110.00952391]
[1642352755650,4.57569878,150.01,149.89,100.25]
[1642352755850,3.19979806,150.04,149.9,74.57]
[1642352756350,3.19979806,150.04,149.92,66.55]
[1642352756550,13.20079806,150.04,149.93,8.02]
[1642352756760,10.001,150.04,149.93,8.02]
[1642352756950,10.001,150.04,149.93,8.27]
[1642352757352,10.001,150.04,149.94,26.97033049]
[1642352757551,10.001,150.04,149.95,8.02]
[1642352757950,10.001,150.04,149.95,8.27]
[1642352760754,9.9996,150.06,149.95,8.27]
[1642352760955,22.6384,150.08,149.95,8.27]
[1642352761156,3.20738096,150.09,149.95,8.27]
[1642352761356,3.20738096,150.09,149.96,0.26]
[1642352761655,3.20738096,150.1,150.0,5.10192858]
[1642352761856,3.20738096,150.1,150.01,74.57]
[1642352762254,3.20738096,150.1,150.01,74.82]
[1642352763154,9.9957,150.12,150.01,74.82]
[1642352764358,9.9957,150.12,150.01,8.27]
[1642352765557,9.9957,150.12,150.01,8.02]
[1642352765959,1.70077588,150.11,150.01,8.02]
[1642352766162,51.98293828,150.1,150.01,8.02]
[1642352766562,9.9972,150.1,150.01,8.02]